[Event "*** SCC Grand Prix: Titled Tuesday Blitz"]
[Site "Chess.com"]
[Date "2020.06.09"]
[Round "10"]
[White "DenLaz"]
[Black "Sychev_Klementy"]
[Result "1-0"]
[WhiteElo "2671"]
[BlackElo "2831"]
[TimeControl "180+1"]
[EndTime "10:57:33 PDT"]
[Termination "DenLaz won on time"]

1. d4 {[%clk 0:03:00.1]} 1... Nf6 {[%clk 0:02:56.6]} 2. c4 {[%clk 0:03:00.4]}
2... g6 {[%clk 0:02:56.6]} 3. g3 {[%clk 0:02:59.7]} 3... Bg7 {[%clk 0:02:52.3]}
4. Bg2 {[%clk 0:02:59.3]} 4... O-O {[%clk 0:02:52.9]} 5. Nc3 {[%clk 0:02:58.1]}
5... d6 {[%clk 0:02:52.5]} 6. Nf3 {[%clk 0:02:57.2]} 6... Nc6 {[%clk 0:02:53.1]}
7. O-O {[%clk 0:02:55.9]} 7... a5 {[%clk 0:02:53.7]} 8. b3 {[%clk 0:02:36.4]}
8... e5 {[%clk 0:02:49.3]} 9. Bb2 {[%clk 0:02:35.9]} 9... e4 {[%clk 0:02:19.6]}
10. Nd2 {[%clk 0:02:12.5]} 10... e3 {[%clk 0:02:14.9]} 11. fxe3 {[%clk
0:02:11.6]} 11... Ng4 {[%clk 0:02:13.3]} 12. Rf3 {[%clk 0:02:11.6]} 12... Re8
{[%clk 0:01:28.4]} 13. Nf1 {[%clk 0:02:09.5]} 13... h5 {[%clk 0:01:16]} 14. Nd5
{[%clk 0:01:59.1]} 14... Ne7 {[%clk 0:01:07.4]} 15. Nxe7+ {[%clk 0:01:41.8]}
15... Qxe7 {[%clk 0:01:05.5]} 16. h3 {[%clk 0:01:39.6]} 16... Nh6 {[%clk
0:01:00.2]} 17. e4 {[%clk 0:01:22.8]} 17... c5 {[%clk 0:00:46]} 18. e3 {[%clk
0:01:09.4]} 18... Bd7 {[%clk 0:00:39.6]} 19. Rf2 {[%clk 0:01:04.4]} 19... Bc6
{[%clk 0:00:35.2]} 20. Nd2 {[%clk 0:01:02.4]} 20... f5 {[%clk 0:00:32.7]} 21.
Qc2 {[%clk 0:00:44.1]} 21... cxd4 {[%clk 0:00:27.9]} 22. exd4 {[%clk 0:00:39.9]}
22... fxe4 {[%clk 0:00:28.2]} 23. d5 {[%clk 0:00:38.3]} 23... e3 {[%clk
0:00:18.8]} 24. Re2 {[%clk 0:00:38.3]} 24... Bxb2 {[%clk 0:00:17.4]} 25. Qxb2
{[%clk 0:00:39.2]} 25... Bd7 {[%clk 0:00:13.2]} 26. Ne4 {[%clk 0:00:37.3]} 26...
Rf8 {[%clk 0:00:05.2]} 27. Rxe3 {[%clk 0:00:33.6]} 27... Nf5 {[%clk 0:00:05.3]}
28. Re2 {[%clk 0:00:33]} 28... Rae8 {[%clk 0:00:05]} 29. Rae1 {[%clk 0:00:31.6]}
29... Qd8 {[%clk 0:00:04.8]} 30. Rf1 {[%clk 0:00:26.6]} 30... b5 {[%clk
0:00:04.7]} 31. g4 {[%clk 0:00:24.4]} 31... Qb6+ {[%clk 0:00:04.7]} 32. Kh2
{[%clk 0:00:20.6]} 32... Ne3 {[%clk 0:00:04.7]} 33. Nf6+ {[%clk 0:00:19.6]}
33... Rxf6 {[%clk 0:00:04.7]} 34. Rxf6 {[%clk 0:00:19.8]} 34... Re5 {[%clk
0:00:02.3]} 35. Qxe5 {[%clk 0:00:18.1]} 1-0

[Event "*** SCC Grand Prix: Titled Tuesday Blitz"]
[Site "Chess.com"]
[Date "2020.06.09"]
[Round "10"]
[White "OdChessWorld"]
[Black "mishanick"]
[Result "0-1"]
[WhiteElo "2805"]
[BlackElo "2947"]
[TimeControl "180+1"]
[EndTime "10:57:37 PDT"]
[Termination "mishanick won by checkmate"]

1. d4 {[%clk 0:03:00.9]} 1... Nf6 {[%clk 0:02:59.7]} 2. c4 {[%clk 0:03:00.8]}
2... e6 {[%clk 0:02:59.9]} 3. Nf3 {[%clk 0:02:59.8]} 3... d5 {[%clk 0:02:59.4]}
4. g3 {[%clk 0:03:00.1]} 4... Bb4+ {[%clk 0:02:58.8]} 5. Bd2 {[%clk 0:02:57.5]}
5... Be7 {[%clk 0:02:58.5]} 6. Bg2 {[%clk 0:02:57.5]} 6... c6 {[%clk 0:02:58.9]}
7. O-O {[%clk 0:02:57.7]} 7... Nbd7 {[%clk 0:02:59.3]} 8. Qc2 {[%clk 0:02:58.1]}
8... O-O {[%clk 0:02:59.6]} 9. Bf4 {[%clk 0:02:58.3]} 9... b6 {[%clk 0:02:59.9]}
10. Nbd2 {[%clk 0:02:49.2]} 10... Nh5 {[%clk 0:02:56.6]} 11. Rac1 {[%clk
0:02:47.9]} 11... Nxf4 {[%clk 0:02:56]} 12. gxf4 {[%clk 0:02:48.8]} 12... Bb7
{[%clk 0:02:52.1]} 13. e3 {[%clk 0:02:46.2]} 13... Rc8 {[%clk 0:02:49.8]} 14.
Rfd1 {[%clk 0:02:45.4]} 14... Bd6 {[%clk 0:02:43.8]} 15. Ne5 {[%clk 0:02:45]}
15... Qe7 {[%clk 0:02:41.8]} 16. Nxd7 {[%clk 0:02:43.8]} 16... Qxd7 {[%clk
0:02:41.5]} 17. Nf3 {[%clk 0:02:42.5]} 17... Qe7 {[%clk 0:02:39.5]} 18. c5
{[%clk 0:02:27.7]} 18... bxc5 {[%clk 0:02:36.7]} 19. dxc5 {[%clk 0:02:28.6]}
19... Bb8 {[%clk 0:02:37.2]} 20. b4 {[%clk 0:02:23.4]} 20... f6 {[%clk
0:02:22.3]} 21. a4 {[%clk 0:02:20.5]} 21... e5 {[%clk 0:02:20.8]} 22. e4 {[%clk
0:02:14.4]} 22... d4 {[%clk 0:02:10]} 23. Qc4+ {[%clk 0:02:10]} 23... Kh8 {[%clk
0:02:08.7]} 24. f5 {[%clk 0:02:04.7]} 24... g5 {[%clk 0:01:54.4]} 25. Nd2 {[%clk
0:01:59.7]} 25... g4 {[%clk 0:01:49.6]} 26. Qd3 {[%clk 0:01:52]} 26... Rg8
{[%clk 0:01:44.6]} 27. Nc4 {[%clk 0:01:45]} 27... Bc7 {[%clk 0:01:40.7]} 28. Bf1
{[%clk 0:01:36.4]} 28... Ba6 {[%clk 0:01:34.8]} 29. Qg3 {[%clk 0:01:31.3]} 29...
Rb8 {[%clk 0:01:33.9]} 30. Rb1 {[%clk 0:01:28.5]} 30... Rg5 {[%clk 0:01:28]} 31.
Nd2 {[%clk 0:01:19.1]} 31... Bc8 {[%clk 0:01:24]} 32. Rdc1 {[%clk 0:01:16.2]}
32... a6 {[%clk 0:01:22.5]} 33. Bc4 {[%clk 0:01:04.3]} 33... h5 {[%clk
0:01:22.5]} 34. Qh4 {[%clk 0:01:01.3]} 34... Qf8 {[%clk 0:01:05.2]} 35. Bd3
{[%clk 0:01:00.3]} 35... Qh6 {[%clk 0:01:04.1]} 36. Nc4 {[%clk 0:00:58.6]} 36...
Rg8 {[%clk 0:01:02.4]} 37. a5 {[%clk 0:00:58.3]} 37... Bb7 {[%clk 0:00:58.2]}
38. Nb6 {[%clk 0:00:56.1]} 38... Rg7 {[%clk 0:00:52]} 39. Bf1 {[%clk 0:00:50.2]}
39... Rf8 {[%clk 0:00:49.9]} 40. Rd1 {[%clk 0:00:48.3]} 40... Rh7 {[%clk
0:00:49.7]} 41. Ra1 {[%clk 0:00:43.6]} 41... Qf4 {[%clk 0:00:49.2]} 42. Bd3
{[%clk 0:00:37.6]} 42... Rg7 {[%clk 0:00:44.5]} 43. Rdc1 {[%clk 0:00:37.2]}
43... Qd2 {[%clk 0:00:31.7]} 44. Bf1 {[%clk 0:00:36.9]} 44... Qxb4 {[%clk
0:00:27.1]} 45. Bc4 {[%clk 0:00:35.2]} 45... Qd2 {[%clk 0:00:26.3]} 46. Qxh5+
{[%clk 0:00:30.1]} 46... Rh7 {[%clk 0:00:26]} 47. Qg6 {[%clk 0:00:30.2]} 47...
Qf4 {[%clk 0:00:25.5]} 48. Bf1 {[%clk 0:00:19]} 48... Qxh2# {[%clk 0:00:24.6]}
0-1

[Event "*** SCC Grand Prix: Titled Tuesday Blitz"]
[Site "Chess.com"]
[Date "2020.06.09"]
[Round "10"]
[White "Escanor89"]
[Black "biaf13"]
[Result "0-1"]
[WhiteElo "2481"]
[BlackElo "2096"]
[TimeControl "180+1"]
[EndTime "10:57:37 PDT"]
[Termination "biaf13 won by resignation"]

1. c4 {[%clk 0:03:00.9]} 1... c5 {[%clk 0:02:49.3]} 2. Nf3 {[%clk 0:02:59.8]}
2... Nf6 {[%clk 0:02:47.5]} 3. Nc3 {[%clk 0:02:59.5]} 3... d5 {[%clk 0:02:45.7]}
4. cxd5 {[%clk 0:02:59]} 4... Nxd5 {[%clk 0:02:46.6]} 5. g3 {[%clk 0:02:57.9]}
5... Nc6 {[%clk 0:02:46.3]} 6. Bg2 {[%clk 0:02:56.7]} 6... Nc7 {[%clk
0:02:45.6]} 7. O-O {[%clk 0:02:55.4]} 7... e5 {[%clk 0:02:45.7]} 8. a3 {[%clk
0:02:54.9]} 8... f6 {[%clk 0:02:40.1]} 9. d3 {[%clk 0:02:48.8]} 9... Be7 {[%clk
0:02:39.4]} 10. Be3 {[%clk 0:02:42]} 10... Bg4 {[%clk 0:02:35.1]} 11. Rc1 {[%clk
0:02:37.7]} 11... O-O {[%clk 0:02:33.8]} 12. Ne4 {[%clk 0:02:36.5]} 12... b6
{[%clk 0:02:32.8]} 13. b4 {[%clk 0:02:35.7]} 13... Nd4 {[%clk 0:02:26.6]} 14.
bxc5 {[%clk 0:02:28.5]} 14... bxc5 {[%clk 0:02:19.9]} 15. Nxc5 {[%clk
0:02:24.6]} 15... Bxc5 {[%clk 0:02:18.3]} 16. Rxc5 {[%clk 0:02:24.6]} 16... Nce6
{[%clk 0:02:17.9]} 17. Rc4 {[%clk 0:02:13.3]} 17... Rc8 {[%clk 0:02:17.1]} 18.
Rxc8 {[%clk 0:02:10.4]} 18... Qxc8 {[%clk 0:02:16.9]} 19. Bxd4 {[%clk 0:02:05]}
19... Bxf3 {[%clk 0:02:14.4]} 20. Bxf3 {[%clk 0:02:04.5]} 20... Nxd4 {[%clk
0:02:14.2]} 21. Bg2 {[%clk 0:01:58.1]} 21... Qa6 {[%clk 0:02:03.5]} 22. e3
{[%clk 0:01:52.6]} 22... Nb5 {[%clk 0:01:56.5]} 23. a4 {[%clk 0:01:48.7]} 23...
Nd6 {[%clk 0:01:51.1]} 24. Qb3+ {[%clk 0:01:48.1]} 24... Kh8 {[%clk 0:01:50.9]}
25. Rc1 {[%clk 0:01:46.6]} 25... Rc8 {[%clk 0:01:48.1]} 26. Rxc8+ {[%clk
0:01:41.8]} 26... Qxc8 {[%clk 0:01:49]} 27. h4 {[%clk 0:01:41]} 27... h6 {[%clk
0:01:41.9]} 28. Bd5 {[%clk 0:01:36.4]} 28... Qc7 {[%clk 0:01:30]} 29. Kg2 {[%clk
0:01:33.3]} 29... Nc8 {[%clk 0:01:29.3]} 30. Be4 {[%clk 0:01:19.2]} 30... Nd6
{[%clk 0:01:22.9]} 31. Bd5 {[%clk 0:01:16.9]} 31... Qb6 {[%clk 0:01:19.9]} 32.
Qc3 {[%clk 0:01:13.1]} 32... Qa6 {[%clk 0:01:02]} 33. Qc7 {[%clk 0:01:08.4]}
33... Qb6 {[%clk 0:01:00.2]} 34. Qe7 {[%clk 0:01:00]} 34... Kh7 {[%clk
0:00:39.3]} 35. d4 {[%clk 0:00:52.6]} 35... exd4 {[%clk 0:00:38.1]} 36. exd4
{[%clk 0:00:52.2]} 36... Nf5 {[%clk 0:00:37.7]} 37. Be4 {[%clk 0:00:51.4]} 37...
Kg6 {[%clk 0:00:19.4]} 38. g4 {[%clk 0:00:46.8]} 38... h5 {[%clk 0:00:10.5]} 39.
Bxf5+ {[%clk 0:00:45.8]} 39... Kh6 {[%clk 0:00:10.9]} 40. Qf7 {[%clk 0:00:43.8]}
40... Qb7+ {[%clk 0:00:02.1]} 41. d5 {[%clk 0:00:43.1]} 41... Qxf7 {[%clk
0:00:01.7]} 0-1

[Event "*** SCC Grand Prix: Titled Tuesday Blitz"]
[Site "Chess.com"]
[Date "2020.06.09"]
[Round "10"]
[White "GustavoJuarezF"]
[Black "mr65"]
[Result "1/2-1/2"]
[WhiteElo "1972"]
[BlackElo "2141"]
[TimeControl "180+1"]
[EndTime "10:57:37 PDT"]
[Termination "Game drawn by repetition"]

1. e4 {[%clk 0:03:00.9]} 1... e5 {[%clk 0:02:40.9]} 2. Nf3 {[%clk 0:02:58.9]}
2... Nc6 {[%clk 0:02:39.9]} 3. Nc3 {[%clk 0:02:58.7]} 3... Nf6 {[%clk
0:02:38.7]} 4. d4 {[%clk 0:02:58.7]} 4... exd4 {[%clk 0:02:37.8]} 5. Nxd4 {[%clk
0:02:58.7]} 5... Nxe4 {[%clk 0:02:36.6]} 6. Nxe4 {[%clk 0:02:57.1]} 6... Qh4
{[%clk 0:02:25.9]} 7. Qd3 {[%clk 0:02:42.6]} 7... Nb4 {[%clk 0:01:43.7]} 8. Qf3
{[%clk 0:02:25.3]} 8... d5 {[%clk 0:01:36.1]} 9. Bg5 {[%clk 0:02:05]} 9... dxe4
{[%clk 0:01:33.2]} 10. Bxh4 {[%clk 0:02:01.7]} 10... exf3 {[%clk 0:01:32.9]} 11.
c3 {[%clk 0:02:01.3]} 11... c5 {[%clk 0:01:25.9]} 12. cxb4 {[%clk 0:01:58.4]}
12... cxd4 {[%clk 0:01:24.9]} 13. O-O-O {[%clk 0:01:58.1]} 13... Bf5 {[%clk
0:01:11.9]} 14. Bb5+ {[%clk 0:01:54.9]} 14... Bd7 {[%clk 0:01:10.9]} 15. Bxd7+
{[%clk 0:01:53.1]} 15... Kxd7 {[%clk 0:01:10.8]} 16. Rxd4+ {[%clk 0:01:53.2]}
16... Kc7 {[%clk 0:01:10.7]} 17. Bg3+ {[%clk 0:01:49.2]} 17... Kb6 {[%clk
0:01:06]} 18. gxf3 {[%clk 0:01:42.9]} 18... Rc8+ {[%clk 0:01:05.3]} 19. Kb1
{[%clk 0:01:42.1]} 19... Be7 {[%clk 0:01:04.1]} 20. a3 {[%clk 0:01:32.9]} 20...
Rhd8 {[%clk 0:00:58.6]} 21. Rhd1 {[%clk 0:01:31.5]} 21... Rxd4 {[%clk 0:00:58]}
22. Rxd4 {[%clk 0:01:30.4]} 22... Bf6 {[%clk 0:00:55.3]} 23. Rd6+ {[%clk
0:01:28.4]} 23... Rc6 {[%clk 0:00:54]} 24. b3 {[%clk 0:01:18.4]} 24... Rxd6
{[%clk 0:00:52.7]} 25. Bxd6 {[%clk 0:01:16.7]} 25... Kc6 {[%clk 0:00:52.8]} 26.
Bb8 {[%clk 0:01:08]} 26... a6 {[%clk 0:00:52.4]} 27. f4 {[%clk 0:01:03.7]} 27...
b5 {[%clk 0:00:44.2]} 28. Kc2 {[%clk 0:01:02.3]} 28... Kd5 {[%clk 0:00:44]} 29.
f3 {[%clk 0:00:59.8]} 29... Bd4 {[%clk 0:00:37.9]} 30. h3 {[%clk 0:00:57]} 30...
f5 {[%clk 0:00:36.2]} 31. a4 {[%clk 0:00:53.1]} 31... g6 {[%clk 0:00:35]} 32.
Kd3 {[%clk 0:00:47]} 32... Bf2 {[%clk 0:00:29.9]} 33. Be5 {[%clk 0:00:44.1]}
33... h5 {[%clk 0:00:29.4]} 34. Bc7 {[%clk 0:00:41.6]} 34... Be1 {[%clk
0:00:28.9]} 35. Ba5 {[%clk 0:00:38.6]} 35... Bg3 {[%clk 0:00:27.5]} 36. Bc7
{[%clk 0:00:37.5]} 36... g5 {[%clk 0:00:26.3]} 37. axb5 {[%clk 0:00:27.4]} 37...
axb5 {[%clk 0:00:24.4]} 38. Ke3 {[%clk 0:00:24.2]} 38... h4 {[%clk 0:00:20.1]}
39. Bb8 {[%clk 0:00:19.5]} 39... Bh2 {[%clk 0:00:16.1]} 40. Bc7 {[%clk
0:00:17.2]} 40... Bg1+ {[%clk 0:00:15]} 41. Kd3 {[%clk 0:00:16.6]} 41... Bh2
{[%clk 0:00:14.5]} 42. Ke3 {[%clk 0:00:16]} 42... Bg1+ {[%clk 0:00:14]} 43. Kd3
{[%clk 0:00:15.7]} 43... Bh2 {[%clk 0:00:14]} 44. Ke3 {[%clk 0:00:15.7]} 1/2-1/2

[Event "*** SCC Grand Prix: Titled Tuesday Blitz"]
[Site "Chess.com"]
[Date "2020.06.09"]
[Round "10"]
[White "Ceejay271"]
[Black "FMOlexandrProhorov"]
[Result "1-0"]
[WhiteElo "2386"]
[BlackElo "2101"]
[TimeControl "180+1"]
[EndTime "10:57:38 PDT"]
[Termination "Ceejay271 won by resignation"]

1. d4 {[%clk 0:03:00.9]} 1... g6 {[%clk 0:02:17]} 2. c4 {[%clk 0:02:59.6]} 2...
Bg7 {[%clk 0:02:17]} 3. Nc3 {[%clk 0:02:59.6]} 3... c5 {[%clk 0:02:17.2]} 4. d5
{[%clk 0:02:59.6]} 4... Bxc3+ {[%clk 0:02:16.6]} 5. bxc3 {[%clk 0:02:59.6]} 5...
f5 {[%clk 0:02:17.5]} 6. h4 {[%clk 0:02:58.3]} 6... Qa5 {[%clk 0:02:17.7]} 7. h5
{[%clk 0:02:55.2]} 7... Qxc3+ {[%clk 0:02:10.3]} 8. Bd2 {[%clk 0:02:54.9]} 8...
Qg7 {[%clk 0:02:10.3]} 9. Rc1 {[%clk 0:02:44.5]} 9... Nf6 {[%clk 0:02:07.2]} 10.
Bc3 {[%clk 0:02:38.8]} 10... d6 {[%clk 0:02:03.3]} 11. Nf3 {[%clk 0:02:33]}
11... Rg8 {[%clk 0:01:56.6]} 12. h6 {[%clk 0:02:31.2]} 12... Qf8 {[%clk
0:01:53.3]} 13. Ng5 {[%clk 0:02:30.6]} 13... Na6 {[%clk 0:01:52]} 14. f3 {[%clk
0:02:24.5]} 14... Bd7 {[%clk 0:01:51.6]} 15. Qb3 {[%clk 0:02:18.7]} 15... O-O-O
{[%clk 0:01:47.1]} 16. Rb1 {[%clk 0:02:17.7]} 16... b6 {[%clk 0:01:46.1]} 17. a4
{[%clk 0:02:17.1]} 17... Kc7 {[%clk 0:01:42.4]} 18. a5 {[%clk 0:02:16.3]} 18...
Rb8 {[%clk 0:01:42.5]} 19. axb6+ {[%clk 0:02:14.8]} 19... Rxb6 {[%clk
0:01:40.2]} 20. Ba5 {[%clk 0:02:13.9]} 20... Qb8 {[%clk 0:01:38.8]} 21. Bxb6+
{[%clk 0:02:05.2]} 21... axb6 {[%clk 0:01:36]} 22. e3 {[%clk 0:01:51.8]} 22...
Nb4 {[%clk 0:01:33]} 23. Ra1 {[%clk 0:01:47.8]} 23... Qb7 {[%clk 0:01:26]} 24.
Be2 {[%clk 0:01:46.3]} 24... Ra8 {[%clk 0:01:00.9]} 25. Kf2 {[%clk 0:01:43.6]}
25... b5 {[%clk 0:00:47.4]} 26. cxb5 {[%clk 0:01:11.8]} 26... Nbxd5 {[%clk
0:00:47.2]} 27. Bc4 {[%clk 0:01:09.7]} 27... Nb6 {[%clk 0:00:44.8]} 28. Be6
{[%clk 0:01:06]} 28... Be8 {[%clk 0:00:42.6]} 29. Qb2 {[%clk 0:00:51.6]} 29...
Nc8 {[%clk 0:00:32.2]} 30. Rxa8 {[%clk 0:00:45.1]} 30... Qxa8 {[%clk 0:00:32.2]}
31. Bxc8 {[%clk 0:00:41.2]} 31... Kxc8 {[%clk 0:00:29.4]} 32. Ra1 {[%clk
0:00:37.8]} 32... Qb7 {[%clk 0:00:26.8]} 33. b6 {[%clk 0:00:37.7]} 33... Nd5
{[%clk 0:00:24.1]} 34. Ra7 {[%clk 0:00:17.8]} 34... Qxb6 {[%clk 0:00:24.1]} 35.
Qxb6 {[%clk 0:00:17.6]} 35... Nxb6 {[%clk 0:00:25]} 36. Rxe7 {[%clk 0:00:17.5]}
36... Kd8 {[%clk 0:00:25.3]} 37. Rxh7 {[%clk 0:00:16.9]} 37... c4 {[%clk
0:00:25.8]} 38. Rb7 {[%clk 0:00:15.3]} 38... Nd5 {[%clk 0:00:24.1]} 39. h7
{[%clk 0:00:14.8]} 39... c3 {[%clk 0:00:23.3]} 40. h8=Q {[%clk 0:00:11.8]} 40...
c2 {[%clk 0:00:22.9]} 41. Rb8+ {[%clk 0:00:11.6]} 41... Kc7 {[%clk 0:00:23.2]}
42. Qxe8 {[%clk 0:00:07.8]} 42... c1=Q {[%clk 0:00:22.9]} 43. Rc8+ {[%clk
0:00:07.8]} 43... Kb6 {[%clk 0:00:22.8]} 44. Rxc1 {[%clk 0:00:08.5]} 44... Nb4
{[%clk 0:00:22.6]} 45. Qb8+ {[%clk 0:00:08.6]} 45... Ka5 {[%clk 0:00:22.6]} 46.
Ra1+ {[%clk 0:00:08.4]} 1-0

[Event "*** SCC Grand Prix: Titled Tuesday Blitz"]
[Site "Chess.com"]
[Date "2020.06.09"]
[Round "10"]
[White "Nastya_Rakhmangulova"]
[Black "2007checkmate"]
[Result "1-0"]
[WhiteElo "2296"]
[BlackElo "2393"]
[TimeControl "180+1"]
[EndTime "10:57:39 PDT"]
[Termination "Nastya_Rakhmangulova won on time"]

1. e4 {[%clk 0:03:00.9]} 1... e5 {[%clk 0:02:59.6]} 2. Nf3 {[%clk 0:03:01.2]}
2... Nc6 {[%clk 0:02:59.6]} 3. c3 {[%clk 0:03:01.8]} 3... Nf6 {[%clk 0:02:51.5]}
4. d4 {[%clk 0:03:01.2]} 4... exd4 {[%clk 0:02:52.4]} 5. e5 {[%clk 0:03:01.2]}
5... Nd5 {[%clk 0:02:52.3]} 6. cxd4 {[%clk 0:03:00.8]} 6... Bb4+ {[%clk
0:02:50.7]} 7. Bd2 {[%clk 0:03:01.4]} 7... Bxd2+ {[%clk 0:02:50.5]} 8. Qxd2
{[%clk 0:03:02.3]} 8... O-O {[%clk 0:02:49.9]} 9. Nc3 {[%clk 0:02:59.5]} 9...
Nxc3 {[%clk 0:02:48.8]} 10. Qxc3 {[%clk 0:03:00.4]} 10... d6 {[%clk 0:02:49.1]}
11. Bb5 {[%clk 0:03:00.1]} 11... Bd7 {[%clk 0:02:41.3]} 12. O-O {[%clk
0:03:00.1]} 12... Nxe5 {[%clk 0:02:34.9]} 13. dxe5 {[%clk 0:02:56.4]} 13... Bxb5
{[%clk 0:02:34.3]} 14. Rfd1 {[%clk 0:02:56.7]} 14... Be2 {[%clk 0:02:33.6]} 15.
Rd2 {[%clk 0:02:56.8]} 15... Bxf3 {[%clk 0:02:32.9]} 16. Qxf3 {[%clk 0:02:57.7]}
16... Rb8 {[%clk 0:02:21.5]} 17. Rad1 {[%clk 0:02:55.3]} 17... Re8 {[%clk
0:02:20.9]} 18. exd6 {[%clk 0:02:53.2]} 18... cxd6 {[%clk 0:02:21.8]} 19. h3
{[%clk 0:02:53.3]} 19... Qa5 {[%clk 0:02:19]} 20. a3 {[%clk 0:02:46.4]} 20...
Qe5 {[%clk 0:01:52]} 21. b4 {[%clk 0:02:25.7]} 21... Red8 {[%clk 0:01:48.5]} 22.
Re2 {[%clk 0:02:13.5]} 22... Qb5 {[%clk 0:01:44.6]} 23. Re7 {[%clk 0:02:12.8]}
23... Rf8 {[%clk 0:01:21.9]} 24. Rxd6 {[%clk 0:02:09.4]} 24... h6 {[%clk
0:01:20.5]} 25. Rdd7 {[%clk 0:02:09.3]} 25... Qc4 {[%clk 0:01:18]} 26. Rxb7
{[%clk 0:01:54.2]} 26... Rxb7 {[%clk 0:01:18.5]} 27. Rxb7 {[%clk 0:01:51.9]}
27... Qd4 {[%clk 0:01:11.5]} 28. g3 {[%clk 0:01:50.9]} 28... g6 {[%clk 0:01:06]}
29. Kg2 {[%clk 0:01:50.7]} 29... Kg7 {[%clk 0:01:06.2]} 30. h4 {[%clk
0:01:50.9]} 30... h5 {[%clk 0:01:05.9]} 31. Re7 {[%clk 0:01:47.7]} 31... a6
{[%clk 0:01:02]} 32. Qe4 {[%clk 0:01:47.3]} 32... Rd8 {[%clk 0:00:50.2]} 33.
Qxd4+ {[%clk 0:01:37.2]} 33... Rxd4 {[%clk 0:00:51.1]} 34. Re5 {[%clk 0:01:35]}
34... Kf6 {[%clk 0:00:47.3]} 35. Ra5 {[%clk 0:01:35]} 35... Rd6 {[%clk
0:00:47.7]} 36. Kf3 {[%clk 0:01:35.2]} 36... Re6 {[%clk 0:00:44.9]} 37. Rc5
{[%clk 0:01:31.9]} 37... Ke7 {[%clk 0:00:35.1]} 38. Kf4 {[%clk 0:01:30.3]} 38...
Kf6 {[%clk 0:00:33.8]} 39. f3 {[%clk 0:01:29.9]} 39... Ke7 {[%clk 0:00:33.2]}
40. g4 {[%clk 0:01:30.2]} 40... hxg4 {[%clk 0:00:32.4]} 41. fxg4 {[%clk
0:01:31.1]} 41... Kf6 {[%clk 0:00:32.6]} 42. h5 {[%clk 0:01:26.6]} 42... gxh5
{[%clk 0:00:31.9]} 43. gxh5 {[%clk 0:01:27.5]} 43... Rd6 {[%clk 0:00:30.6]} 44.
Ke4 {[%clk 0:01:26.4]} 44... Kg7 {[%clk 0:00:20.5]} 45. Rd5 {[%clk 0:01:24.6]}
45... Re6+ {[%clk 0:00:15.1]} 46. Kd4 {[%clk 0:01:24.3]} 46... Kh6 {[%clk
0:00:11.9]} 47. a4 {[%clk 0:01:21.7]} 47... Re8 {[%clk 0:00:07.7]} 48. a5 {[%clk
0:01:17.4]} 48... Rf8 {[%clk 0:00:07.6]} 49. Rf5 {[%clk 0:01:09.9]} 49... Rb8
{[%clk 0:00:05.6]} 50. Kc4 {[%clk 0:01:08.5]} 50... Rc8+ {[%clk 0:00:05.8]} 51.
Rc5 {[%clk 0:01:06.8]} 51... Rb8 {[%clk 0:00:03.5]} 52. Rc6+ {[%clk 0:01:06.2]}
52... Kxh5 {[%clk 0:00:03.2]} 53. Rxa6 {[%clk 0:01:06.7]} 53... f5 {[%clk
0:00:03.7]} 54. Rd6 {[%clk 0:01:04.6]} 54... f4 {[%clk 0:00:03.5]} 55. a6 {[%clk
0:01:03.2]} 55... f3 {[%clk 0:00:03.4]} 56. Rf6 {[%clk 0:01:02.1]} 56... Kg4
{[%clk 0:00:03]} 57. b5 {[%clk 0:01:01.5]} 57... Rc8+ {[%clk 0:00:03.1]} 58. Kb4
{[%clk 0:01:01]} 58... Re8 {[%clk 0:00:03]} 59. a7 {[%clk 0:01:01.1]} 59... Re4+
{[%clk 0:00:03.1]} 60. Ka5 {[%clk 0:01:00.9]} 60... Re1 {[%clk 0:00:03.3]} 61.
Kb6 {[%clk 0:00:59.1]} 1-0

[Event "*** SCC Grand Prix: Titled Tuesday Blitz"]
[Site "Chess.com"]
[Date "2020.06.09"]
[Round "10"]
[White "CzechmVIII"]
[Black "manmanlai1"]
[Result "0-1"]
[WhiteElo "2191"]
[BlackElo "2394"]
[TimeControl "180+1"]
[EndTime "10:57:39 PDT"]
[Termination "manmanlai1 won on time"]

1. e4 {[%clk 0:03:00.9]} 1... c5 {[%clk 0:02:57.6]} 2. Nf3 {[%clk 0:03:00.9]}
2... e6 {[%clk 0:02:57.7]} 3. Nc3 {[%clk 0:03:00.5]} 3... Nc6 {[%clk 0:02:55.7]}
4. d4 {[%clk 0:03:00]} 4... cxd4 {[%clk 0:02:56.6]} 5. Nxd4 {[%clk 0:03:00.1]}
5... Qc7 {[%clk 0:02:56.3]} 6. Qd3 {[%clk 0:02:59.7]} 6... Nxd4 {[%clk 0:02:48]}
7. Qxd4 {[%clk 0:02:59]} 7... a6 {[%clk 0:02:48.3]} 8. Be3 {[%clk 0:02:54.9]}
8... d6 {[%clk 0:02:45.3]} 9. O-O-O {[%clk 0:02:36.2]} 9... Bd7 {[%clk
0:02:40.2]} 10. f3 {[%clk 0:02:33.5]} 10... Nf6 {[%clk 0:02:37.9]} 11. g4 {[%clk
0:02:32.8]} 11... Bc6 {[%clk 0:02:19.3]} 12. h4 {[%clk 0:02:18.9]} 12... Nd7
{[%clk 0:02:10.3]} 13. h5 {[%clk 0:01:53.4]} 13... b5 {[%clk 0:02:03.1]} 14. h6
{[%clk 0:01:33.7]} 14... Rg8 {[%clk 0:01:59.9]} 15. Qd2 {[%clk 0:01:25.9]} 15...
g6 {[%clk 0:01:54.9]} 16. Ne2 {[%clk 0:01:18.2]} 16... Bb7 {[%clk 0:01:49.4]}
17. Kb1 {[%clk 0:01:18.1]} 17... Ne5 {[%clk 0:01:45.9]} 18. Nd4 {[%clk
0:01:13.6]} 18... Rc8 {[%clk 0:01:40.6]} 19. Be2 {[%clk 0:00:54]} 19... Be7
{[%clk 0:01:22.1]} 20. g5 {[%clk 0:00:40.1]} 20... Nc4 {[%clk 0:01:11.3]} 21.
Bxc4 {[%clk 0:00:38.3]} 21... Qxc4 {[%clk 0:01:12.2]} 22. Rc1 {[%clk 0:00:28.8]}
22... Kd7 {[%clk 0:01:06.3]} 23. Rhd1 {[%clk 0:00:26.1]} 23... Rgd8 {[%clk
0:01:06.1]} 24. e5 {[%clk 0:00:16.6]} 24... Ke8 {[%clk 0:01:00.8]} 25. exd6
{[%clk 0:00:14.4]} 25... Rxd6 {[%clk 0:00:57.5]} 26. Qf2 {[%clk 0:00:13.9]}
26... Rcd8 {[%clk 0:00:54.4]} 27. Rd3 {[%clk 0:00:11.1]} 27... e5 {[%clk
0:00:45.9]} 28. Rc3 {[%clk 0:00:07.5]} 28... Qd5 {[%clk 0:00:40.9]} 29. Nb3
{[%clk 0:00:07.5]} 29... Rc6 {[%clk 0:00:27.7]} 30. Rxc6 {[%clk 0:00:04.9]}
30... Bxc6 {[%clk 0:00:26.9]} 31. Bc5 {[%clk 0:00:04.9]} 31... Qxf3 {[%clk
0:00:22.1]} 32. Qxf3 {[%clk 0:00:03.7]} 32... Bxf3 {[%clk 0:00:21.4]} 33. Bxe7
{[%clk 0:00:04.3]} 33... Kxe7 {[%clk 0:00:21.9]} 34. Nc5 {[%clk 0:00:04.6]}
34... a5 {[%clk 0:00:15]} 35. b3 {[%clk 0:00:04.9]} 35... f6 {[%clk 0:00:14.2]}
36. Kb2 {[%clk 0:00:04.7]} 36... fxg5 {[%clk 0:00:13.8]} 37. Rf1 {[%clk
0:00:04.7]} 37... g4 {[%clk 0:00:14]} 38. Nd3 {[%clk 0:00:03]} 38... Kf6 {[%clk
0:00:13.8]} 39. Nc5 {[%clk 0:00:02.6]} 39... Kf5 {[%clk 0:00:13.1]} 40. Re1
{[%clk 0:00:01.6]} 40... e4 {[%clk 0:00:13.3]} 0-1